Cogmind - Beta 13 @@@ ROGUE MODE // 2024.04.13 @ 15:11:24 Player: SpaceWalrus Result: Destroyed by Y-54 Guardian with Gatling Laser Performance ------------- Evolutions (3) 1500 Regions Visited (6) 1200 Robots Destroyed (67) 335 Value Destroyed (1555) 1555 Prototype IDs (25) 500 Alien Tech Used (0) 0 Bonus (419) 419 TOTAL SCORE: 5509 Bonus ------- Follower Combat Kills 163 Aligned with FarCom 300 Friendly Fire -44 Cogmind --------- Core Integrity 0/700 Matter 33/300 Energy 18/100 System Corruption 0% Temperature Cool (12) Movement Core (50) Location -7/Factory Parts ------- > --- POWER (2) -------- (None) > --- PROPULSION (3) --- (None) > --- UTILITY (5) ------ Improved Signal Interpreter Advanced Targeting Computer Improved Utility Shielding > --- WEAPON (3) ------- (None) > --- INVENTORY (5) ---- Hybrid Deuterium Engine Hybrid Deuterium Engine Carbon-fiber Leg Improved Heat Sink Experimental Sensor Array Peak State ------------ > --- POWER ------------ Light Nuclear Core > --- PROPULSION ------- Carbon-fiber Leg Carbon-fiber Leg Titanium Leg > --- UTILITY ---------- Large Storage Unit Improved Signal Interpreter Advanced Targeting Computer Improved Propulsion Shielding Improved Utility Shielding > --- WEAPON ----------- Improved Assault Rifle Gauss Rifle Rocket Launcher > --- INVENTORY -------- Light Deuterium Engine Armored Treads Carbon-fiber Leg Improved Heat Sink Experimental Sensor Array Medium Laser Assault Rifle Grenade Launcher [Rating: 36] Favorites ----------- Power Light Nuclear Core Engine Ion Engine Power Core Light Nuclear Core Propulsion Aluminum Leg Treads Armored Treads Leg Aluminum Leg Wheel Wheel Utility Signal Interpreter Device Improved Heat Sink Storage Large Storage Unit Processor Signal Interpreter Protection Improved Light Armor Plating Weapon Medium Laser Energy Gun Medium Laser Energy Cannon Plasma Cannon Ballistic Gun Assault Rifle Ballistic Cannon Light Cannon Launcher Grenade Launcher Special Weapon Plasma Flamer Build | -11 -10 -10 -10 -9 -8 -7 ------- Run | Yrd Mat Min Exi Min Mat Fac Slots Evolved 6 | . . . . . 4 2 Power 1 | . . . . . . 1 Propulsion 1 | . . . . . 1 . Utility 3 | . . . . . 2 1 Weapon 1 | . . . . . 1 . Parts Attached 61 | 8 8 7 2 6 21 9 Power 7 | 1 1 1 . 1 2 1 Engine 4 | 1 1 . . . 1 1 Core 3 | . . 1 . 1 1 . Reactor . | . . . . . . . Propulsion 15 | 2 2 2 . 2 6 1 Treads 1 | . . . . . . 1 Leg 13 | 2 2 1 . 2 6 . Wheel 1 | . . 1 . . . . Hover . | . . . . . . . Flight . | . . . . . . . Utility 17 | 3 2 3 1 . 6 2 Device 5 | 2 . 1 . . 2 . Storage 5 | 1 1 2 1 . . . Processor 3 | . 1 . . . 2 . Hackware . | . . . . . . . Protection 4 | . . . . . 2 2 Artifact . | . . . . . . . Weapon 22 | 2 3 1 1 3 7 5 Energy Gun 6 | 2 2 . . 1 . 1 Energy Cannon 1 | . . . . . . 1 Ballistic Gun 6 | . 1 . . . 4 1 Ballistic Cannon 1 | . . . . . 1 . Launcher 4 | . . . . 2 . 2 Special Weapon 4 | . . 1 1 . 2 . Impact Weapon . | . . . . . . . Slashing Weapon . | . . . . . . . Piercing Weapon . | . . . . . . . Special Melee Weapon . | . . . . . . . Unidentified Prototypes 2 | . . . . . 2 . Parts Lost 25 | . 2 1 . 2 6 14 Power 4 | . . . . 1 1 2 Propulsion 9 | . 1 1 . 1 2 4 Utility 3 | . 1 . . . 1 1 Weapon 9 | . . . . . 2 7 Highest Loss Streak 14 | . 2 1 . 1 2 14 To Critical Strikes . | . . . . . . . Average Slot Usage (%) 95 | . 97 95 100 95 97 76 Engine 4 | . 14 . . . 4 . Core 7 | . . 13 14 13 4 4 Leg 22 | . 27 22 14 16 25 17 Wheel 2 | . . 1 14 8 . . Device 6 | . 8 7 5 . 8 . Storage 9 | . 10 6 8 14 9 6 Processor 12 | . 7 14 14 14 14 15 Protection 1 | . . . . . 4 12 Energy Gun 10 | . 19 10 . 10 9 2 Ballistic Gun 8 | . 8 14 4 . 9 12 Ballistic Cannon 1 | . . . . . 5 . Launcher 1 | . . . . 11 2 1 Special Weapon 3 | . . 3 23 6 . . Naked Turns . | . . . . . . . Heaviest Build 41 | 12 20 19 36 36 41 40 Greatest Support 52 | 20 20 20 10 30 52 47 Greatest Overweight (x) 9 | 3 1 1 3 9 1 1 Average Overweight (x) . | . . . 2 2 . . Largest Inventory Capacity 15 | 8 10 15 15 15 15 15 Average Capacity 11 | 7 8 7 10 15 15 14 Most Carried 13 | 5 10 10 6 9 13 9 Average Carried 6 | 3 7 7 5 7 6 7 Final Capacity 15 | 5 10 5 15 15 15 5 Final Carried 10 | 4 10 5 6 9 9 5 Class Distribution -------------------- 52% | Scavenger-Mutant 27% | Scavenger-Skirmisher 19% | Mutant Dominant Class ---------------- Scavenger-Mutant | -10/Materials Scavenger-Mutant | -10/Mines Scavenger-Mutant | -10/Exiles Scavenger-Mutant | -9/Mines Scavenger-Skirmisher | -8/Materials Scavenger-Skirmisher | -7/Factory Resources | -11 -10 -10 -10 -9 -8 -7 ----------- Run | Yrd Mat Min Exi Min Mat Fac Matter Collected 1415 | 280 202 87 . 218 586 42 Remotely . | . . . . . . . Salvage Created 2154 | 140 635 237 . 86 600 456 Parts 126 | 9 35 27 . 5 35 15 Haulers Intercepted 2 | . 1 . . . 1 . Recyclers Shooed 4 | . 3 . . . 1 . Parts Field Recycled . | . . . . . . . Retrieved Matter . | . . . . . . . Parts Self-Destructed . | . . . . . . . Prevented . | . . . . . . . Kills | -11 -10 -10 -10 -9 -8 -7 ------- Run | Yrd Mat Min Exi Min Mat Fac Combat Hostiles Destroyed 48 | . 8 10 . 7 11 12 Guns 32 | . 8 10 . 4 5 5 Cannons 5 | . . . . . 2 3 AOE 11 | . . . . 3 4 4 Classes Destroyed 12 | 2 6 1 . 1 2 . Worker 4 | . . 1 . 1 2 . Builder 3 | . 2 . . . . 1 Tunneler 4 | 3 . 1 . . . . Hauler 2 | . 1 . . . 1 . Recycler 7 | 1 3 . . . 3 . Operator 1 | . 1 . . . . . Watcher 4 | . 2 . . . 2 . Swarmer 18 | . 3 8 . . 4 3 Grunt 17 | . 5 2 . 1 3 6 Sentry 4 | . . . . . 1 3 Hunter 3 | . . . . . 3 . Assembled 6 | . . . . 6 . . Best Kill Streak 6 | 2 4 4 . 2 4 6 Combat Bots Only 6 | . 3 3 . 2 4 6 Max Kills in Single Turn 3 | 1 1 2 . 2 3 2 Gunslinging . | . . . . . . . Exploded 3 | . . . . 1 3 2 Melee . | . . . . . . . Uniques/NPCs Destroyed . | . . . . . . . Combat | -11 -10 -10 -10 -9 -8 -7 -------- Run | Yrd Mat Min Exi Min Mat Fac Hostile Shots Fired 533 | . 70 53 . 30 62 318 Missed 167 | . 23 17 . 12 12 103 Damage Taken 4225 | . 570 285 . 283 833 2254 Core 1054 | . 117 53 . 70 107 707 Absorbed by Shields . | . . . . . . . Redirected to Shielding 202 | . . . . . . 202 Core Remaining (%) 61 | 100 . . . 4 80 . Volleys Fired 215 | 6 64 30 . 22 63 30 Largest 3 | 2 2 2 . 2 3 3 Hottest 185 | 80 100 120 . 100 185 101 Shots Fired 430 | 12 116 48 . 31 154 69 Gun 343 | 12 116 46 . 21 97 51 Cannon 48 | . . . . . 42 6 Launcher 26 | . . . . 8 6 12 Special 13 | . . 2 . 2 9 . Kinetic 183 | . 17 30 . . 90 46 Thermal 216 | 12 99 18 . 22 54 11 Explosive 26 | . . . . 8 6 12 Electromagnetic . | . . . . . . . Robot Hit Streak 13 | 3 9 3 . 4 12 13 Robot Miss Streak 6 | 1 3 5 . 3 6 2 Penetration Max 1 | . . . . . 1 1 Secondary Targets 3 | . . 3 . . . . Max Gunslinging Chain 1 | . . 1 . . . . Shots Hit Robots 249 | 8 67 21 . 16 85 52 Core Hits 126 | 5 29 13 . 14 35 30 Critical Kills 2 | . . 1 . . . 1 Critical Parts Destroyed 1 | . . . . . 1 . Critical Strikes 7 | . . 1 . 1 4 1 Burn 3 | . . . . 1 2 . Destroy 3 | . . 1 . . 1 1 Blast 1 | . . . . . 1 . Melee Attacks . | . . . . . . . Impact . | . . . . . . . Slashing . | . . . . . . . Piercing . | . . . . . . . Sneak Attacks . | . . . . . . . Combat Hostiles . | . . . . . . . Follow-up Attacks . | . . . . . . . Damage Inflicted 4444 | 91 823 257 . 402 1511 1360 Guns 2819 | 91 823 257 . 148 853 647 Cannons 545 | . . . . . 389 156 Explosions 1006 | . . . . 240 209 557 Melee . | . . . . . . . Ramming . | . . . . . . . Kinetic 1810 | . 128 144 . . 940 598 Thermal 1628 | 91 695 113 . 162 362 205 Explosive 1006 | . . . . 240 209 557 Electromagnetic . | . . . . . . . Impact . | . . . . . . . Slashing . | . . . . . . . Piercing . | . . . . . . . Highest Corruption . | . . . . . . . Average Corruption . | . . . . . . . Corruption Purged . | . . . . . . . Corruption Blocked . | . . . . . . . Overload Shots . | . . . . . . . Overflow Damage 34 | . . . . . 34 . Projectiles 10 | . . . . . 10 . Explosions 24 | . . . . . 24 . Melee . | . . . . . . . Knockbacks 4 | . . . . . 4 . Impact . | . . . . . . . Kinetic 4 | . . . . . 4 . Secondary . | . . . . . . . Self-Inflicted Damage 47 | . . . . . 47 . Shots 1 | . . . . . 1 . Rammed . | . . . . . . . Targets Rammed . | . . . . . . . Kicked . | . . . . . . . Crushed . | . . . . . . . Highest Temperature 334 | 36 334 75 . 96 312 159 Average Temperature 71 | 18 101 26 . 35 159 34 Received Heat Transfer 1359 | . 309 12 . 48 198 792 Effects 2 | . 1 . . . 1 . Interference 1 | . . . . . 1 . Matter Decay 1 | . 1 . . . . . Siege Activations . | . . . . . . . Robots Corrupted . | . . . . . . . Combat Hostiles . | . . . . . . . Parts Fried . | . . . . . . . Impact Corruptions . | . . . . . . . Robots Melted . | . . . . . . . Combat Hostiles . | . . . . . . . Parts Melted 8 | 3 3 . . . . 2 Heat Transferred 4889 | 200 1788 333 . 598 1522 448 Parts Sabotaged . | . . . . . . . Parts Stolen . | . . . . . . . Parts Stripped . | . . . . . . . Power Chain Reactions . | . . . . . . . Alert | -11 -10 -10 -10 -9 -8 -7 ------- Run | Yrd Mat Min Exi Min Mat Fac Peak Influence 314 | 20 257 168 . 85 314 298 Initial 61 | . 13 3 . . . 61 Average 117 | 10 104 108 . 50 169 156 Maximum Alert Level 1 | . 1 . . . 1 1 Low Security (%) 83 | 100 86 100 . 100 64 55 Level 1 16 | . 13 . . . 35 44 Level 2 . | . . . . . . . Level 3 . | . . . . . . . Level 4 . | . . . . . . . Level 5 . | . . . . . . . High Security . | . . . . . . . Max Security . | . . . . . . . Squads Dispatched 12 | . 1 . . . 5 6 Investigation 3 | . . . . . 2 1 Extermination . | . . . . . . . Reinforcement 5 | . 1 . . . 2 2 Assault . | . . . . . . . Garrison 4 | . . . . . 1 3 Intercept . | . . . . . . . Searches Triggered . | . . . . . . . Construction Impeded 2 | . . . . . 1 1 Haulers Reinforced 1 | . . . . . . 1 Active Scanning Responses . | . . . . . . . Cargo Convoy Interrupts . | . . . . . . . Stealth | -11 -10 -10 -10 -9 -8 -7 --------- Run | Yrd Mat Min Exi Min Mat Fac Distress Signals 3 | . . . . . 3 . Communications Jammed . | . . . . . . . Distress Signals . | . . . . . . . Times Spotted 79 | . 13 10 . 10 29 17 Peak Tracking Total 9 | . 3 3 . 3 5 9 Tactical Retreats 3 | . . 1 . 1 . 1 Traps | -11 -10 -10 -10 -9 -8 -7 ------- Run | Yrd Mat Min Exi Min Mat Fac Traps Triggered . | . . . . . . . Indirectly . | . . . . . . . Trap Hack Attempts . | . . . . . . . Triggered . | . . . . . . . Disarmed . | . . . . . . . Reprogrammed . | . . . . . . . Reused . | . . . . . . . Traps Extracted . | . . . . . . . Installed . | . . . . . . . Triggered . | . . . . . . . Machines | -11 -10 -10 -10 -9 -8 -7 ---------- Run | Yrd Mat Min Exi Min Mat Fac Machines Disabled 4 | . . . . 1 3 . Max in Single Turn 1 | . . . . 1 1 . Machines Repaired . | . . . . . . . Machines Dismantled . | . . . . . . . Machines Sabotaged . | . . . . . . . Overloaded Fab Kills . | . . . . . . . Hacking | -11 -10 -10 -10 -9 -8 -7 --------- Run | Yrd Mat Min Exi Min Mat Fac Machines Accessed 9 | . 3 . 1 . 4 1 Terminals 7 | . 3 . . . 4 . Fabricators . | . . . . . . . Repair Stations . | . . . . . . . Recycling Units . | . . . . . . . Scanalyzers . | . . . . . . . Garrison Access 1 | . . . . . . 1 Total Hacks 21 | . 8 . 1 . 10 2 Successful 11 | . 6 . 1 . 4 . Failed 10 | . 2 . . . 6 2 Catastrophic 2 | . . . . . 1 1 Database Lockouts . | . . . . . . . Manual 1 | . . . 1 . . . Terminals 18 | . 8 . . . 10 . Fabricators . | . . . . . . . Repair Stations . | . . . . . . . Recycling Units . | . . . . . . . Scanalyzers . | . . . . . . . Garrison Access 2 | . . . . . . 2 Terminal Hacks 11 | . 6 . 1 . 4 . Branch Access Points 1 | . 1 . . . . . Emergency Access Points 3 | . 2 . . . 1 . Alert Level 1 | . . . . . 1 . Locate Traps 1 | . 1 . . . . . Reinforcement Status 1 | . . . . . 1 . Hauler Manifests 2 | . 1 . . . 1 . Zone Layout 1 | . 1 . . . . . Derelict Proto ID Bank 1 | . . . 1 . . . Fabricator Hacks . | . . . . . . . Repair Station Hacks . | . . . . . . . Recycling Unit Hacks . | . . . . . . . Scanalyzer . | . . . . . . . Garrison Access Hacks . | . . . . . . . Unauthorized Hacks . | . . . . . . . Terminals . | . . . . . . . Fabricators . | . . . . . . . Repair Stations . | . . . . . . . Recycling Units . | . . . . . . . Scanalyzers . | . . . . . . . Garrison Access . | . . . . . . . Data Cores Recovered . | . . . . . . . Used . | . . . . . . . Hacking Detections 4 | . . . . . 3 1 Full Trace Events 3 | . . . . . 2 1 Feedback Events . | . . . . . . . Feedback Blocked . | . . . . . . . Robot Schematics Acquired . | . . . . . . . Robots Built . | . . . . . . . Authchips . | . . . . . . . Time . | . . . . . . . Total Robot Build Rating . | . . . . . . . Part Schematics Acquired . | . . . . . . . Parts Built . | . . . . . . . Authchips . | . . . . . . . Time . | . . . . . . . Total Part Build Rating . | . . . . . . . Parts Repaired . | . . . . . . . Time . | . . . . . . . Parts Recycled . | . . . . . . . Recycled Matter . | . . . . . . . Retrieved Matter . | . . . . . . . Retrieved Components . | . . . . . . . Parts Scanalyzed . | . . . . . . . Part Schematics Acquired . | . . . . . . . Parts Damaged . | . . . . . . . Bothacking | -11 -10 -10 -10 -9 -8 -7 ------------ Run | Yrd Mat Min Exi Min Mat Fac Used RIF Installer . | . . . . . . . Robots Hacked . | . . . . . . . Non-combat . | . . . . . . . Combat . | . . . . . . . Robot Hacks Applied . | . . . . . . . Relay Couplers Released . | . . . . . . . Fabnet Peak Effective % . | . . . . . . . Robots Rewired . | . . . . . . . Allies Hacked . | . . . . . . . Hacks Repelled . | . . . . . . . Allies | -11 -10 -10 -10 -9 -8 -7 -------- Run | Yrd Mat Min Exi Min Mat Fac Total Allies 4 | . . . . 1 3 . Largest Group 2 | . . . . 1 2 . Highest-Rated Group 37 | . . . . 16 37 . Highest-Rated Ally 21 | . . . . 16 21 . Total Orders . | . . . . . . . Ally Attacks 46 | . . . . 17 29 . Total Damage 709 | . . . . 157 552 . Kills 9 | . . . . 4 5 . Allies Corrupted . | . . . . . . . Allies Melted . | . . . . . . . Field Lobotomies 4 | . . . . 1 3 . Intel | -11 -10 -10 -10 -9 -8 -7 ------- Run | Yrd Mat Min Exi Min Mat Fac Robot Analysis Total . | . . . . . . . Derelict Logs Recovered 2 | . . 1 . 1 . . Drone Launches . | . . . . . . . Drone Recoveries . | . . . . . . . Exploration | -11 -10 -10 -10 -9 -8 -7 ------------- Run | Yrd Mat Min Exi Min Mat Fac Turns Passed 3769 | 114 911 749 363 420 992 220 Spaces Moved 2329 | 70 574 513 324 212 550 86 Core 39 | 17 . . . 20 . 2 Treads 7 | . . . . . . 7 Legs 1761 | 53 574 453 . 54 550 77 Wheels 522 | . . 60 324 138 . . Hover . | . . . . . . . Flight . | . . . . . . . Fastest Speed 50 | 50 120 95 95 110 120 100 Average Speed 125 | 109 121 125 110 158 125 133 Slowest Speed 500 | 200 190 190 125 500 195 250 Overloaded Moves . | . . . . . . . Propulsion Burnouts . | . . . . . . . Robots Hopped . | . . . . . . . Cave-ins Triggered . | . . . . . . . Exploration Rate (%) 41 | 4 61 77 69 38 36 2 Regions Visited 6 Branch Regions 3 Pre-discovered Areas . | . . . . . . . Known Exits Taken 5 | . 1 1 1 1 1 . Unknown Exits Taken 1 | 1 . . . . . . Scrap Searched 1 | . . . . 1 . . Spaces Dug . | . . . . . . . Terrain Destroyed 91 | . . . . 36 40 15 Melee . | . . . . . . . Projectile 1 | . . . . . 1 . AOE 90 | . . . . 36 39 15 Terrain Rammed . | . . . . . . . Walls Destroyed . | . . . . . . . Machines Disabled . | . . . . . . . Actions | -11 -10 -10 -10 -9 -8 -7 --------- Run | Yrd Mat Min Exi Min Mat Fac Total 2782 | 96 674 570 327 263 717 135 Wait 91 | . 9 6 . 16 56 4 Move 2323 | 69 573 512 323 211 549 86 Hop . | . . . . . . . Pick Up 60 | 12 14 3 1 6 20 4 Fast Attach 6 | . . 5 1 . . . Attach 36 | 7 4 . . 3 14 8 Detach 1 | . . . . 1 . . Swap 19 | 1 4 2 1 3 7 1 Drop 31 | 1 6 12 1 1 8 2 Fire 215 | 6 64 30 . 22 63 30 Melee . | . . . . . . . Ram . | . . . . . . . Kick . | . . . . . . . Crush . | . . . . . . . Escape Stasis . | . . . . . . . Rewire . | . . . . . . . Trap . | . . . . . . . Miscellaneous . | . . . . . . . Route ------- -11/Scrapyard -10/Materials (discovered 4 exits: *Mat x2 / *Min x2) -10/Mines (discovered 2 exits: *Mat / *Exi) -10/Exiles -9/Mines -8/Materials (discovered 2 exits: *Fac x2) -7/Factory History --------- Turn | Location | Event 14 | -11/Scrapyard | Discovered new exit (range 16) 115 | -11/Scrapyard | Entered Materials 316 | -10/Materials | Build established: Mutant 546 | -10/Materials | Discovered new exit (range 13) 560 | -10/Materials | Identified exit to Materials 594 | -10/Materials | Identified exit to Mines 755 | -10/Materials | Discovered exit to Materials (range 15) 854 | -10/Materials | Build established: Scavenger-Mutant 1026 | -10/Materials | Entered Mines 1029 | -10/Mines | Core integrity fell below 50% 1097 | -10/Mines | Discovered exit to Materials (range 9) 1234 | -10/Mines | Learned 8 Materials zone layouts 1273 | -10/Mines | Found a damaged Exp. Sensor Array with a note attached 1279 | -10/Mines | Found Prototype Device 1592 | -10/Mines | A weapon hastily lodged in a ceiling crevice suddenly fell to the ground 1623 | -10/Mines | Deemed a non-threat by the Exiles lab entrance 1623 | -10/Mines | Discovered new exit (range 6) 1632 | -10/Mines | Identified exit to Exiles 1775 | -10/Mines | Entered Exiles 1799 | -10/Exiles | Met 8R-AWN 1814 | -10/Exiles | Met EX-HEX 1849 | -10/Exiles | Met EX-BIN 1860 | -10/Exiles | Aligned with FarCom system 1861 | -10/Exiles | Given EX-Vault access code 1884 | -10/Exiles | Opened EX-Vault 1892 | -10/Exiles | Found Field Lobotomy Kit 1915 | -10/Exiles | Warned to stay clear of 0b10 Research branches 2033 | -10/Exiles | Met EX-DEC 2128 | -10/Exiles | Discovered new exit (range 10) 2137 | -10/Exiles | Identified exit to Mines 2138 | -10/Exiles | Left Exiles lab with Field Lobotomy Kit 2138 | -10/Exiles | Entered Mines 2138 | -9/Mines | Assimilated G-47 Trooper with FLK Orb 2200 | -9/Mines | Assembled infested the area 2205 | -9/Mines | Assisted by a Guerilla fighting off Assembled 2246 | -9/Mines | Core integrity fell below 20% 2542 | -9/Mines | Discovered new exit (range 13) 2557 | -9/Mines | Identified exit to Materials 2558 | -9/Mines | Entered Materials 2558 | -8/Materials | Evolved 4 slots: Propulsion x1, Utility x2, Weapon x1 2559 | -8/Materials | Identified exit to Factory 2806 | -8/Materials | Assimilated H-55 Commando with FLK Orb 2827 | -8/Materials | Assimilated G-47 Trooper with FLK Orb 2832 | -8/Materials | Assimilated G-47 Trooper with FLK Orb 2903 | -8/Materials | Garrison activated, responded to threat 3138 | -8/Materials | Build established: Scavenger-Skirmisher 3476 | -8/Materials | Identified Exp. Sensor Array 3550 | -8/Materials | Entered Factory 3550 | -7/Factory | Evolved 2 slots: Power x1, Utility x1 3756 | -7/Factory | Core integrity fell below 50% 3767 | -7/Factory | Core integrity fell below 20% 3770 | -7/Factory | Destroyed by Y-54 Guardian with Gatling Laser Last Messages --------------- G-47 Trooper suffers critical hit (Destroy). G-47 Trooper destroyed. Carbon-fiber Leg destroyed. Imp. Assault Rifle destroyed. Assault Rifle destroyed. Lgt. Deuterium Engine destroyed. Acquired Plasma Cannon. S-27 Virus destroyed. G-47 Trooper destroyed. Lgt. Nuclear Core melted. G-47 Trooper destroyed. Acquired 42 matter. Arm. Treads destroyed. Plasma Cannon destroyed. S-27 Virus destroyed. VTOL Module melted. S-27 Virus destroyed. Grenade Launcher destroyed. Dropped Lrg. Storage Unit. Med. Laser destroyed. Map ----- +----------------------------------------------------+ | ?????????????# # """ """ !#????????????????? | | ????########## # """ """ #????????????????? | | ????# # # #????????????????? | | ???????""" "" # #????????????????? | | ???????""" "" # ! #????????????????? | | ????# """ "" # !! #????????????????? | | ????# G # " " !!! #????????????????? | | ???# ! ""#%[ # "Y" !! #????????????????? | | ???## !! "" %[ # """ #????????????????? | | ????# !! "" ##############????????????????? | | ????# !! # %# """T""" #????????????????? | | ????##### ### # = #????????????????? | | ???? #????????????????? | | ??? + #????????????????? | | ??? # % """ """ #????????????????? | | ???? # """ """ #????????????????? | | ???? # """ """ !#????????????????? | | ????########## # #????????????????? | | ?????????????# g# ! """ #????????????????? | | ?????????????# #!! """ ?????????????????? | | ?????????????# #! """ #????????????????? | | ?????????????# #!* #????????????????? | | ?????????????# ####+#########????????????????? | | ?????????????# # Y%! #######??????????????? | | ?????????????# #""" #????????? | | ?????????????# #""" @ # #????????? | | ??????????????? #"""s *[ #?? #????????? | | ?????????????????? + Y[% #????? ??????????? | | ????????????????? #""" %* #????????"???????????? | | ???????????????????#""" = #????????????????????? | | ???????????????????#""" #????????????????????? | | ???????????????????# #????????????????????? | | ???????????????????#######+##????????????????????? | | ?????????????????????????? #?????????????????????? | | ?????????????????????????? #?????????????????????? | | ?????????????????????????? #?????????????????????? | | ??????????????????????????[ ?????????????????????? | | ?????????????????????????? ?????????????????????? | | ?????????????????????????? ?????????????????????? | | ?????????????????????????? #?????????????????????? | | ?????????????????????????????????????????????????? | | ?????????????????????????????????????????????????? | | ?????????????????????????????????????????????????? | | ?????????????????????????????????????????????????? | | ?????????????????????????????????????????????????? | | ?????????????????????????????????????????????????? | | ?????????????????????????????????????????????????? | | ?????????????????????????????????????????????????? | | ?????????????????????????????????????????????????? | | ?????????????????????????????????????????????????? | +----------------------------------------------------+ Best States ------------- Heat Dissipation 45 Energy Generation 14 Energy Capacity 250 Matter Stores 300 Matter Capacity 300 Sight Range 16 Terrain Scan Range 16 Terrain Scan Density 10 Armor Coverage 150 Propulsion Shielding 66 Utility Shielding 66 Evasion (%) 55 Targeting Accuracy 8 Recoil Reduction 1 Item Schematics ----------------- None Robot Schematics ------------------ None Fabricated ------------ Nothing Alien Tech Used ----------------- None Achievements -------------- Close Call Challenges ------------ None Game ------ Seed GaussConcussiveLoader Manual? 0 Play Time 00:33:53 Cumulative 19.3 hours Start 2024.04.13 @ 14:36:59 End 2024.04.13 @ 15:11:24 Sessions 1 Manual Loads 0 Difficulty Rogue Special Mode None Game No. 23 Rogue 23 Adventurer 0 Explorer 0 Win Type - Total 0 Types 0/0/0/0/0/0/0/0/0 Lore% 18 Gallery% 29 Achievement% 19 Wizard Run 0 Options --------- Layout 1 ASCII 0 Keyboard 0 Movement Numpad Keybinds 0 Fullscreen 1 Font 24/Smallcaps Map View 50x40 Zoom Use 0% Tactical HUD 0 Map Filters NONE Filters NONE Steam 1 RUN: 95731e68-823a-45c8-aa80-6b7e3327e3fc